Cogmind - Beta 15 @@@ ROGUE MODE // 2025.09.16 @ 17:54:29 Player: beans Result: Destroyed self with Mini Grenade Launcher Performance ------------- Evolutions (1) 500 Regions Visited (2) 400 Robots Destroyed (38) 190 Value Destroyed (875) 875 Prototype IDs (1) 20 Alien Tech Used (0) 0 Bonus (0) 0 TOTAL SCORE: 1985 Bonus ------- None Cogmind --------- Core Integrity 0/400 Matter 88/300 Energy 99/100 System Corruption 0% Temperature Cool (6) Movement Core (50) Location -9/Materials Parts ------- > --- POWER (1) -------- (None) > --- PROPULSION (4) --- (None) > --- UTILITY (2) ------ (None) > --- WEAPON (2) ------- Mini Grenade Launcher Mini Grenade Launcher > --- INVENTORY (5) ---- Cooling System Cooling System Cooling System Heavy EM Pulse Gun Rocket Launcher Peak State ------------ > --- POWER ------------ Light Ion Engine > --- PROPULSION ------- (None) > --- UTILITY ---------- Cooling System > --- WEAPON ----------- Heavy EM Pulse Gun Medium Laser > --- INVENTORY -------- Cooling System [Rating: 6] Favorites ----------- Power Light Ion Engine Engine Light Ion Engine Propulsion Flight Unit Hover Unit Hover Unit Flight Unit Flight Unit Utility Cooling System Device Cooling System Weapon Medium Laser Energy Gun Medium Laser Launcher Mini Grenade Launcher Build | -11 -10 -9 ------- Run | Yrd Mat Mat Slots Evolved 2 | . . 2 Power . | . . . Propulsion 2 | . . 2 Utility . | . . . Weapon . | . . . Parts Attached 14 | 2 7 5 Power 2 | 1 1 . Engine 2 | 1 1 . Core . | . . . Reactor . | . . . Propulsion 3 | . 2 1 Treads . | . . . Leg . | . . . Wheel . | . . . Hover 1 | . 1 . Flight 2 | . 1 1 Utility 1 | . 1 . Device 1 | . 1 . Storage . | . . . Processor . | . . . Hackware . | . . . Protection . | . . . Artifact . | . . . Weapon 8 | 1 3 4 Energy Gun 3 | 1 2 . Energy Cannon . | . . . Ballistic Gun . | . . . Ballistic Cannon . | . . . Launcher 5 | . 1 4 Special Weapon . | . . . Impact Weapon . | . . . Slashing Weapon . | . . . Piercing Weapon . | . . . Special Melee Weapon . | . . . Unidentified Prototypes 1 | . . 1 Parts Lost 9 | . 5 4 Power 2 | . 1 1 Propulsion 3 | . 2 1 Utility 1 | . 1 . Weapon 3 | . 1 2 Highest Loss Streak 2 | . 2 2 To Critical Strikes . | . . . Average Backups 2 | . 2 4 Power . | . . . Propulsion . | . . . Utility 1 | . 1 3 Weapon 1 | . 1 1 Tool/Special . | . . . Unused Backups 3 | . . 3 Power . | . . . Propulsion . | . . . Utility 3 | . . 3 Weapon . | . . . Tool/Special . | . . . Average Slot Usage (%) 45 | . 52 19 Engine 10 | . 12 2 Hover 2 | . 2 . Flight 3 | . 3 3 Device 7 | . 9 . Energy Gun 16 | . 21 2 Launcher 4 | . 2 11 Peak Build Rating 6 | 2 6 6 Average Rating 4 | 1 4 4 On Entrance 2 | . 2 4 Naked Turns 8 | . . 8 Heaviest Build 9 | 5 9 8 Greatest Support 6 | 3 6 5 Greatest Overweight (x) 2 | 1 2 2 Average Overweight (x) 1 | . 1 . Largest Inventory Capacity 5 | 5 5 5 Average Capacity 5 | 5 5 5 Most Carried 5 | 1 5 5 Average Carried 2 | . 2 4 Final Capacity 5 | 5 5 5 Final Carried 5 | . 4 5 Class Distribution -------------------- 100% | Mutant Dominant Class ---------------- Mutant | -10/Materials Mutant | -9/Materials Resources | -11 -10 -9 ----------- Run | Yrd Mat Mat Matter Collected 500 | 220 90 190 Remotely . | . . . Salvage Created 843 | . 406 437 Parts 43 | . 16 27 Haulers Intercepted 3 | . 2 1 Recyclers Shooed 2 | . . 2 Parts Field Recycled . | . . . Retrieved Matter . | . . . Parts Self-Destructed . | . . . Prevented . | . . . Kills | -11 -10 -9 ------- Run | Yrd Mat Mat Combat Hostiles Destroyed 23 | . 7 16 Guns 2 | . 2 . AOE 18 | . 2 16 Classes Destroyed 10 | . 5 5 Worker 3 | . 1 2 Builder 3 | . 2 1 Hauler 3 | . 2 1 Recycler 2 | . . 2 Operator 1 | . . 1 Watcher 3 | . 1 2 Swarmer 7 | . . 7 Grunt 12 | . 7 5 Brawler 1 | . . 1 Sentry 3 | . . 3 Best Kill Streak 17 | . 4 17 Combat Bots Only 11 | . 2 11 Max Kills in Single Turn 8 | . 4 8 Gunslinging . | . . . Exploded 5 | . 2 5 Melee . | . . . Uniques/NPCs Destroyed . | . . . Combat | -11 -10 -9 -------- Run | Yrd Mat Mat Hostile Shots Fired 116 | . 40 76 Missed 45 | . 10 35 Hits 71 | . 30 41 Projectile 71 | . 30 41 Critical Strikes 1 | . . 1 Damage Taken 1058 | . 429 629 Core 503 | . 100 403 Absorbed by Shields . | . . . Core Remaining (%) 80 | 100 60 . Volleys Fired 77 | . 46 31 Largest 2 | . 2 2 Hottest 100 | . 100 83 Shots Fired 123 | . 85 38 Gun 88 | . 83 5 Cannon . | . . . Launcher 35 | . 2 33 Special . | . . . Kinetic . | . . . Thermal 86 | . 81 5 Explosive 35 | . 2 33 Electromagnetic 2 | . 2 . Robot Hit Streak 18 | . 13 18 Robot Miss Streak 5 | . 5 2 Penetration Max . | . . . Secondary Targets . | . . . Shots Hit Robots 79 | . 60 19 Core Hits 61 | . 19 42 Critical Kills . | . . . Critical Parts Destroyed . | . . . Critical Strikes 7 | . 6 1 Burn 7 | . 6 1 Melee Attacks . | . . . Impact . | . . . Slashing . | . . . Piercing . | . . . Sneak Attacks . | . . . Combat Hostiles . | . . . Follow-up Attacks . | . . . Damage Inflicted 3069 | . 990 2079 Guns 800 | . 749 51 Cannons . | . . . Explosions 2269 | . 241 2028 Melee . | . . . Ramming . | . . . Kinetic . | . . . Thermal 800 | . 749 51 Explosive 2269 | . 241 2028 Electromagnetic . | . . . Impact . | . . . Slashing . | . . . Piercing . | . . . Highest Corruption . | . . . Average Corruption . | . . . Corruption Purged . | . . . Corruption Blocked . | . . . Overload Shots . | . . . Overflow Damage 116 | . 5 111 Projectiles . | . . . Explosions 116 | . 5 111 Melee . | . . . Knockbacks . | . . . Impact . | . . . Kinetic . | . . . Secondary . | . . . Self-Inflicted Damage 307 | . 69 238 Shots 12 | . 2 10 Rammed . | . . . Targets Rammed . | . . . Kicked . | . . . Crushed . | . . . Highest Temperature 58 | . 58 17 Average Temperature 20 | . 26 8 Received Heat Transfer 312 | . 198 114 Siege Activations . | . . . Martial Activations . | . . . Shielding Activations . | . . . Robots Disrupted . | . . . Combat Hostiles . | . . . Robots Corrupted . | . . . Combat Hostiles . | . . . Parts Fried . | . . . Impact Corruptions . | . . . Robots Melted 3 | . 3 . Combat Hostiles 3 | . 3 . Parts Melted 12 | . 12 . Heat Transferred 2886 | . 2664 222 Parts Sabotaged . | . . . Parts Stolen . | . . . Parts Stripped . | . . . Power Chain Reactions . | . . . Alert | -11 -10 -9 ------- Run | Yrd Mat Mat Maximum Alert Level 1 | . . 1 Low Security (%) 94 | 100 100 75 Level 1 5 | . . 24 Level 2 . | . . . Level 3 . | . . . Level 4 . | . . . Level 5 . | . . . High Security . | . . . Max Security . | . . . Peak Influence 353 | . 85 353 Initial 33 | . . 33 Average 32 | . 7 121 Influence Increases 961 | . 242 719 Destroy 0b10 Robot/C 460 | . 140 320 Destroy 0b10 Robot/NC 75 | . 30 45 Destroy Leader 112 | . 46 66 Disable Machine 150 | . 15 135 Destroy Structure 149 | . 11 138 Partial Spotted 15 | . . 15 Influence Decreases 612 | . 163 449 Entered New Map 46 | . . 46 Time Decay 274 | . 144 130 Lost Part 59 | . 19 40 Purge Threat 233 | . . 233 Squads Dispatched 5 | . 4 1 Investigation 1 | . 1 . Extermination . | . . . Reinforcement 4 | . 3 1 Assault . | . . . Garrison . | . . . Intercept . | . . . Searches Triggered . | . . . Construction Impeded . | . . . Haulers Reinforced . | . . . Active Scanning Responses . | . . . Cargo Convoy Interrupts . | . . . Stealth | -11 -10 -9 --------- Run | Yrd Mat Mat Distress Signals 3 | . 1 2 Communications Jammed . | . . . Distress Signals . | . . . Times Spotted 36 | . 11 25 Peak Tracking Total 9 | . 3 9 Tactical Retreats . | . . . Traps | -11 -10 -9 ------- Run | Yrd Mat Mat Traps Triggered 1 | . . 1 Indirectly . | . . . Trap Hack Attempts . | . . . Triggered . | . . . Disarmed . | . . . Reprogrammed . | . . . Reused . | . . . Traps Extracted . | . . . Installed . | . . . Triggered . | . . . Machines | -11 -10 -9 ---------- Run | Yrd Mat Mat Machines Disabled 10 | . 1 9 Max in Single Turn 2 | . 1 2 Machines Repaired . | . . . Machines Dismantled . | . . . Machines Sabotaged . | . . . Overloaded Fab Kills . | . . . Hacking | -11 -10 -9 --------- Run | Yrd Mat Mat Machines Accessed 2 | . . 2 Terminals 2 | . . 2 Fabricators . | . . . Repair Stations . | . . . Recycling Units . | . . . Scanalyzers . | . . . Garrison Access . | . . . Total Hacks 5 | . . 5 Successful 3 | . . 3 Failed 2 | . . 2 Catastrophic 1 | . . 1 Database Lockouts . | . . . Manual . | . . . Terminals 5 | . . 5 Fabricators . | . . . Repair Stations . | . . . Recycling Units . | . . . Scanalyzers . | . . . Garrison Access . | . . . Terminal Hacks 3 | . . 3 Robot Analysis 1 | . . 1 Unreport Threat 2 | . . 2 Fabricator Hacks . | . . . Repair Station Hacks . | . . . Recycling Unit Hacks . | . . . Scanalyzer . | . . . Garrison Access Hacks . | . . . Unauthorized Hacks . | . . . Terminals . | . . . Fabricators . | . . . Repair Stations . | . . . Recycling Units . | . . . Scanalyzers . | . . . Garrison Access . | . . . Data Cores Recovered 1 | . . 1 Used . | . . . Hacking Detections 2 | . . 2 Full Trace Events . | . . . Feedback Events . | . . . Feedback Blocked . | . . . Robot Schematics Acquired . | . . . Robots Built . | . . . Authchips . | . . . Time . | . . . Total Robot Build Rating . | . . . Part Schematics Acquired . | . . . Parts Built . | . . . Authchips . | . . . Time . | . . . Total Part Build Rating . | . . . Parts Repaired . | . . . Time . | . . . Parts Recycled . | . . . Recycled Matter . | . . . Retrieved Matter . | . . . Retrieved Components . | . . . Parts Scanalyzed . | . . . Part Schematics Acquired . | . . . Parts Damaged . | . . . Bothacking | -11 -10 -9 ------------ Run | Yrd Mat Mat Used RIF Installer . | . . . Robots Hacked . | . . . Non-combat . | . . . Combat . | . . . Robot Hacks Applied . | . . . Relay Couplers Released . | . . . Fabnet Peak Effective % . | . . . Robots Rewired . | . . . Allies Hacked . | . . . Hacks Repelled . | . . . Allies | -11 -10 -9 -------- Run | Yrd Mat Mat Total Allies . | . . . Largest Group . | . . . Highest-Rated Group . | . . . Highest-Rated Ally . | . . . Total Orders . | . . . Ally Attacks . | . . . Total Damage . | . . . Kills . | . . . Allies Corrupted . | . . . Allies Melted . | . . . Intel | -11 -10 -9 ------- Run | Yrd Mat Mat Active Infowar (turns) . | . . . Robot Analysis Total 1 | . . 1 Derelict Logs Recovered . | . . . Drone Launches . | . . . Drone Recoveries . | . . . Exploration | -11 -10 -9 ------------- Run | Yrd Mat Mat Turns Passed 1221 | 36 913 272 Spaces Moved 856 | 37 522 297 Core 459 | 37 269 153 Treads . | . . . Legs . | . . . Wheels . | . . . Hover 143 | . 143 . Flight 254 | . 110 144 Fastest Speed 40 | 50 50 40 Average Speed 114 | 86 145 64 Slowest Speed 200 | 100 200 150 Overloaded Moves . | . . . Propulsion Burnouts . | . . . Robots Hopped . | . . . Potential Cave-ins 2 | . . 2 Cave-ins Triggered . | . . . Exploration Rate (%) 34 | 4 57 42 Regions Visited 2 Branch Regions . Pre-discovered Areas . | . . . Known Exits Taken . | . . . Unknown Exits Taken 2 | 1 1 . Scrap Searched . | . . . Spaces Dug 35 | . . 35 Terrain Destroyed 177 | . 13 164 Melee . | . . . Projectile . | . . . AOE 177 | . 13 164 Terrain Rammed . | . . . Walls Destroyed . | . . . Machines Disabled . | . . . Actions | -11 -10 -9 --------- Run | Yrd Mat Mat Total 972 | 40 593 339 Wait 7 | . 7 . Move 854 | 36 521 297 Hop . | . . . Pick Up 15 | 2 10 3 Fast Attach 4 | . . 4 Attach 11 | 2 7 2 Detach 1 | . 1 . Swap 2 | . 1 1 Drop 1 | . . 1 Fire 77 | . 46 31 Melee . | . . . Ram . | . . . Kick . | . . . Crush . | . . . Escape Stasis . | . . . Rewire . | . . . Trap . | . . . Miscellaneous . | . . . Route ------- -11/Scrapyard -10/Materials (discovered 3 exits: *Mat / [*Min] / [*Sub]) -9/Materials (discovered 2 exits: [*Mat x2]) History --------- Turn | Location | Event 4 | -11/Scrapyard | Discovered new exit (range 16) 37 | -11/Scrapyard | Entered Materials 311 | -10/Materials | Build established: Mutant 426 | -10/Materials | Discovered new exit (range 15) 684 | -10/Materials | Discovered new exit (range 8) 940 | -10/Materials | Discovered new exit (range 14) 950 | -10/Materials | Entered another Materials area 950 | -9/Materials | Evolved 2 slots: Propulsion x2 1134 | -9/Materials | Discovered new exit (range 5) 1165 | -9/Materials | Core integrity fell below 50% 1179 | -9/Materials | Core integrity fell below 20% 1218 | -9/Materials | Destroyed 11 combat bots 1222 | -9/Materials | Discovered new exit (range 13) 1222 | -9/Materials | Destroyed self with Mini Grenade Launcher Last Messages --------------- U-05 Engineer builds a Wall. K-01 Serf collects debris. U-05 Engineer lays Concrete. Destroyed Weight Redist. System. R-06 Scavenger collects Lgt. Assault Rifle. K-01 Serf collects debris. U-05 Engineer lays Concrete. K-01 Serf destroyed. A-02 Transporter destroyed. K-01 Serf collects debris. U-05 Engineer builds a Wall. U-05 Engineer lays Concrete. R-06 Scavenger collects Lgt. Ion Engine. U-05 Engineer lays Concrete. K-01 Serf collects debris. U-05 Engineer lays Concrete. K-01 Serf collects debris. Acquired 8 matter. Acquired 10 matter. EXIT=FOUND Map ----- +----------------------------------------------------+ | ?????????????????????????????????????????????????? | | ?????????????????????????????????????????????????? | | ?????????????????????????????????????????????????? | | ?????????????????????????????????????????????????? | | ?????????????????????????????????????????????????? | | ?????????????????????????????????????????????????? | | ?????????????????????????????????????????????????? | | ?????????????????????????????????????????????????? | | ?????????????????????????????????????????????????? | | ?????????????????????????????????????????????????? | | ?????????????????????????????????????????????????? | | ??????????????????????####???????????????????????? | | ??????????????????????# ???????????????????????? | | ??????????????????????# < ???????????????????????? | | ??????????????????????#ggg???????????????????????? | | ??????????????????????# ???????????????????????? | | ??????????????????????# ag???????????????????????? | | ??????????????????????# #??????????????????????? | | ????????????????????### #??######??????????????? | | ????????????????????? ####!!!!##?????????????? | | ?????????????????????? ##! !#?????????????? | | ??????????????????????# # ??????????????? | | ??????????????????????# ## ########????????? | | ??????????????????????# ## + #????????? | | ????????????????####### ### # #????????? | | ???????????????# [ @ # ########## | | ???????????????# # +? ## | | ???????????????#?""" ?# " " #? ## """"" | | ?????????????????""" # #?? ## """"" | | ???????????????# """ + #??#+#### " """ | | ???????????????# = [ #??# #?# " "" | | ?????????????????##### = #??# #?# """ | | ?????????????????????# ]]] #### ### "" | | ?????????????????????# ] ] ## # # # "" | | ?????????????????????# * ## # # | | ?????????????????????# ## #%# # ### | | ?????????????????????# * # # = [ | | ?????????????????????## r # [ | | ??????????????????????# % % [ | | ????????????????? | | ???????????????? %[ ^ ### = %* | | ???????????????? % #?# / | | ????????????????## #?# / | | ?????????????????# #?# | | ?????????????????# " #?## [ | | ?????????????????# #??######### | | ?????????????????# #??????????# | | ?????????????????? ######### #?????###### | | ??????????????????? ????????# | | ?????????????????????????????# #### ##????###### | +----------------------------------------------------+ Best States ------------- Heat Dissipation 47 Energy Generation 10 Energy Capacity 250 Matter Stores 300 Matter Capacity 300 Sight Range 16 Terrain Scan Density 10 Evasion (%) 62 Item Schematics ----------------- None Robot Schematics ------------------ None Fabricated ------------ Nothing Repaired ---------- Nothing Alien Tech Used ----------------- None Achievements -------------- None Challenges ------------ None Game ------ Seed IntegrityUltimateNanosword Manual? 0 Play Time 00:11:19 Cumulative 141.1 hours Start 2025.09.16 @ 17:45:16 End 2025.09.16 @ 17:54:29 Sessions 1 Manual Loads 0 Difficulty Rogue Special Mode None Game No. 475 Rogue 475 Adventurer 0 Explorer 0 Win Type - Total 0 Types 0/0/0/0/0/0/0/0/0/0 Lore% 52 Gallery% 49 Achievement% 37 Wizard Run 0 Options --------- Layout 2 ASCII 0 Keyboard 0 Movement Mouse Keybinds 0 Fullscreen 2 Font 24/Smallcaps Map View 50x44 Zoom Use 0% Tactical HUD 0 Map Filters NONE Filters NONE Steam 1 RUN: 73463527-21d3-4bcf-80b0-266ca531cb2d